bitfinex-derivatives/quotes_SOLF0:USTF0_20230103
["timestamp","ask_amount","ask_price","bid_price","bid_amount"]
[1672761533703,50.0,12.857,12.839,5.0]
[1672761533912,0.06662832,12.852,12.843,0.06712029]
[1672761540223,19.51,12.845,12.827,55.0]
[1672761540429,19.51,12.845,12.83,48.3671]
[1672761540853,19.41,12.838,12.831,0.0523486]
[1672761542108,19.58,12.835,12.831,0.0523486]
[1672761543163,0.06001731,12.839,12.831,0.0523486]
[1672761543376,50.0,12.838,12.831,0.0523486]
[1672761543902,19.57,12.837,12.831,0.0523486]
[1672761544743,0.06001731,12.839,12.831,0.0523486]
[1672761546318,50.0,12.857,12.832,5.0]
[1672761546319,5.0,12.854,12.832,5.0]
[1672761546526,50.0,12.848,12.832,5.0]
[1672761546736,5.0,12.847,12.832,5.0]
[1672761547372,0.06769292,12.844,12.835,0.07012798]
[1672761553780,50.0,12.877,12.842,19.41]
[1672761553992,50.0,12.867,12.843,5.0]
[1672761554200,5.0,12.876,12.847,50.0]
[1672761554410,44.3472,12.875,12.848,5.0]
[1672761554623,24.51,12.874,12.848,5.0]
[1672761554826,0.06535093,12.866,12.856,0.06419497]
[1672761555044,0.06875253,12.866,12.856,0.06025968]
[1672761556088,19.51,12.862,12.845,5.0]
[1672761556298,50.0,12.858,12.843,5.0]
[1672761556720,5.0,12.861,12.843,5.0]
[1672761556929,5.0,12.866,12.843,5.0]
[1672761557140,0.06300371,12.859,12.85,0.06910548]
[1672761557458,0.07036254,12.859,12.85,0.06352984]
[1672761559348,19.46,12.855,12.85,0.06352984]
[1672761559559,19.51,12.852,12.832,5.0]
[1672761559980,5.0,12.857,12.832,5.0]
[1672761559981,5.0,12.851,12.832,5.0]
[1672761560192,5.0,12.855,12.832,50.3302]
[1672761560505,0.06146757,12.848,12.84,0.06915217]
[1672761560716,0.06390476,12.848,12.84,0.06320138]
[1672761561771,19.64390476,12.848,12.84,0.06320138]
[1672761562293,0.06390476,12.848,12.84,0.06320138]
[1672761562818,50.06390476,12.848,12.84,0.06320138]
[1672761563446,0.06390476,12.848,12.84,0.06320138]
[1672761567973,0.1727537,12.84,12.835,5.0]
[1672761568169,19.51,12.858,12.835,5.0]
[1672761568385,50.0,12.868,12.838,50.0]
[1672761568596,62.0155,12.865,12.839,5.0]
[1672761568801,50.0,12.858,12.839,5.0]
[1672761569017,0.07095555,12.853,12.844,0.06987736]
[1672761575637,0.07095555,12.853,12.844,5.06987736]
[1672761575846,5.0,12.868,12.844,5.0]
[1672761576266,94.1011,12.869,12.845,5.0]
[1672761576476,94.1011,12.869,12.846,5.0]
[1672761576888,0.07061041,12.862,12.853,0.0639234]
[1672761577100,0.06109908,12.862,12.853,0.06780162]
[1672761583936,50.0,12.859,12.853,0.06780162]
[1672761584680,19.58,12.854,12.829,5.0]
[1672761584986,50.0,12.85,12.831,48.0753486]
[1672761585609,0.06262692,12.846,12.838,0.06075017]
[1672761585827,0.06262692,12.846,12.838,0.06438726]
[1672761586247,43.8196,12.858,12.839,5.0]
[1672761586670,50.0,12.859,12.839,5.0]
[1672761586880,5.0,12.858,12.839,5.0]
[1672761587087,50.0,12.859,12.839,5.0]
[1672761587297,0.06126777,12.853,12.845,0.07087987]
[1672761587615,0.06059305,12.853,12.845,0.07087987]
[1672761587824,55.0,12.869,12.846,5.0]
[1672761588447,50.0,12.86,12.846,5.0]
[1672761588875,0.06687749,12.857,12.849,0.06574758]
[1672761590756,50.0,12.869,12.85,5.0]
[1672761590968,5.0,12.868,12.85,5.0]
[1672761591179,50.0,12.869,12.85,5.0]
[1672761591390,50.0,12.86,12.85,5.0]
[1672761591612,50.0,12.86,12.848,5.0]
[1672761591923,0.06073412,12.858,12.85,0.06458733]
[1672761597391,0.06073412,12.858,12.852,19.58]
[1672761597598,0.06073412,12.858,12.85,0.06458733]
[1672761602335,50.0,12.851,12.839,43.3372]
[1672761602643,50.0,12.851,12.836,5.0]
[1672761603384,0.06654306,12.848,12.836,5.0]
[1672761603596,0.06654306,12.848,12.839,0.06377952]
[1672761604640,50.0,12.841,12.821,57.14285714]
[1672761604850,50.0,12.831,12.816,58.52]
[1672761605064,50.0,12.822,12.807,58.56]
[1672761605482,5.0,12.84,12.808,5.0]
[1672761605798,50.0,12.832,12.809,58.55]
[1672761606009,5.0,12.831,12.81,5.0]
[1672761606218,5.0,12.847,12.813,5.0]
[1672761606425,5.0,12.85,12.821,50.0]
[1672761606639,5.0,12.85,12.822,58.49]
[1672761606845,50.0,12.823,12.813,5.0]
[1672761607060,50.0,12.814,12.744,50.0]
[1672761607370,0.06367269,12.783,12.734,50.0]
[1672761607586,50.0,12.775,12.725,50.0]
[1672761607791,50.0,12.765,12.716,5.0]
[1672761607999,39.23,12.764,12.716,5.0]
[1672761608207,39.23,12.764,12.724,50.0]
[1672761608418,0.06781014,12.748,12.74,0.06202267]
[1672761608628,0.0614154,12.748,12.74,0.06626886]
[1672761608840,4.41204645,12.762,12.745,5.0]
[1672761609050,50.0,12.795,12.754,50.0]
[1672761609266,5.0,12.784,12.755,5.0]
[1672761609583,50.0,12.776,12.755,5.0]
[1672761609785,50.0,12.776,12.728,58.93]
[1672761609786,50.0,12.766,12.727,58.93]
[1672761609997,5.0,12.765,12.728,5.0]
[1672761610313,50.0,12.796,12.764,50.0]
[1672761610520,5.0,12.805,12.765,5.0]
[1672761610736,58.58,12.804,12.773,50.0]
[1672761610947,50.0,12.786,12.774,5.0]
[1672761611258,0.06197747,12.784,12.776,0.06763656]
[1672761611464,50.0,12.787,12.765,5.0]
[1672761611678,50.0,12.797,12.765,5.0]
[1672761611889,50.0,12.787,12.765,5.0]
[1672761612099,63.61,12.796,12.774,50.0]
[1672761612100,5.0,12.796,12.774,50.0]
[1672761612415,5.0,12.803,12.781,0.06373563]
[1672761612624,50.0,12.797,12.775,5.0]
[1672761612834,58.61,12.796,12.775,5.0]
[1672761613144,5.0,12.795,12.765,5.0]
[1672761613360,58.62,12.794,12.765,5.0]
[1672761613562,0.06684138,12.784,12.775,0.06695073]
[1672761613772,0.06958904,12.784,12.775,0.06375243]
[1672761614201,63.67,12.783,12.757,5.0]
[1672761614410,5.0,12.782,12.757,5.0]
[1672761614627,58.68,12.781,12.757,5.0]
[1672761614936,5.0,12.78,12.757,5.0]
[1672761615141,0.06904248,12.773,12.757,5.0]
[1672761615351,0.06130741,12.769,12.761,0.06618217]
[1672761615562,0.07108881,12.769,12.761,0.06215566]
[1672761615985,58.68,12.781,12.762,5.0]
[1672761616199,5.0,12.783,12.762,5.0]
[1672761616407,58.66,12.786,12.762,5.0]
[1672761616612,5.0,12.789,12.762,5.0]
[1672761617032,0.06365825,12.779,12.77,0.06875576]
[1672761617248,0.06094133,12.779,12.77,0.06342816]
[1672761617452,5.0,12.778,12.757,5.0]
[1672761617881,5.0,12.778,12.745,5.0]
[1672761618092,58.7,12.777,12.745,55.0]
[1672761618290,58.7,12.777,12.745,5.0]
[1672761618500,0.06696135,12.767,12.758,0.06553987]
[1672761618715,0.070262,12.767,12.758,0.06032159]
[1672761619245,5.0,12.766,12.745,5.0]
[1672761619452,58.75,12.765,12.735,50.0]
[1672761619768,5.0,12.764,12.725,55.0]
[1672761619978,5.0,12.764,12.748,0.0693633]
[1672761620189,0.06510668,12.76,12.752,0.06491378]
[1672761620400,0.06230392,12.76,12.752,0.07096363]
[1672761621236,5.0,12.759,12.725,55.0]
[1672761621452,5.0,12.759,12.725,5.0]
[1672761621765,5.0,12.759,12.735,50.0]
[1672761621977,5.0,12.759,12.725,55.0]
[1672761622178,5.0,12.759,12.725,5.0]
[1672761622392,5.0,12.759,12.725,55.0]
[1672761622607,0.0603567,12.751,12.742,0.0657919]
[1672761622920,0.06125552,12.751,12.742,0.06870861]
[1672761624603,113.82,12.75,12.696,50.0]
[1672761624911,50.0,12.74,12.706,50.0]
[1672761625128,58.83,12.748,12.706,50.0]
[1672761625438,50.0,12.718,12.659,5.0]
[1672761625757,0.06931126,12.712,12.704,0.06551293]
[1672761625961,5.0,12.731,12.705,5.0]
[1672761626175,5.0,12.731,12.706,59.03]
[1672761626493,50.0,12.728,12.705,5.0]
[1672761626703,5.0,12.727,12.705,5.0]
[1672761627017,0.06404608,12.72,12.712,0.06433613]
[1672761627225,0.06616825,12.72,12.712,0.06780662]
[1672761627430,5.0,12.735,12.713,5.0]
[1672761627646,5.0,12.746,12.713,5.0]
[1672761627855,5.0,12.746,12.714,58.99]
[1672761628066,5.0,12.746,12.715,5.0]
[1672761628593,5.0,12.746,12.726,0.06244623]
[1672761628799,5.0,12.746,12.717,5.0]
[1672761629014,5.0,12.746,12.718,58.97]
[1672761629227,5.0,12.746,12.719,5.0]
[1672761629436,5.0,12.746,12.72,58.96]
[1672761629641,0.06436216,12.737,12.729,0.06892107]
[1672761629857,5.0,12.747,12.73,5.0]
[1672761630374,575.0,12.777,12.731,58.91]
[1672761630584,575.0,12.777,12.723,5.0]
[1672761630585,5.0,12.757,12.725,5.0]
[1672761630799,5.0,12.761,12.737,0.0707883]
[1672761631009,575.0,12.797,12.738,58.88]
[1672761631220,50.0,12.768,12.728,58.93]
[1672761631426,50.0,12.768,12.729,5.0]
[1672761631635,5.0,12.767,12.73,58.92]
[1672761631953,5.0,12.767,12.744,0.06029888]
[1672761632166,5.0,12.767,12.751,0.06158424]
[1672761632370,5.0,12.767,12.755,0.06216843]
[1672761632579,5.0,12.767,12.757,0.06382884]
[1672761632787,50.0,12.768,12.758,0.07025761]
[1672761633003,50.0,12.768,12.759,0.06282509]
[1672761633210,5.0,12.771,12.759,0.06499667]
[1672761633530,50.0,12.768,12.759,0.06499667]
[1672761633741,50.0,12.768,12.759,0.06260788]
[1672761634268,5.0,12.775,12.759,0.06260788]
[1672761634473,5.0,12.768,12.763,0.067204]
[1672761634689,5.0,12.768,12.741,5.0]
[1672761635106,5.0,12.772,12.741,5.0]
[1672761635315,50.0,12.769,12.741,5.0]
[1672761635529,5.0,12.772,12.741,5.0]
[1672761635744,0.06728203,12.761,12.752,0.06591901]
[1672761635951,0.06815841,12.761,12.752,0.06879214]
[1672761636156,5.0,12.775,12.753,5.0]
[1672761636371,50.0,12.773,12.743,5.0]
[1672761636581,50.0,12.759,12.743,5.0]
[1672761636794,5.0,12.775,12.743,5.0]
[1672761636997,50.0,12.769,12.743,5.0]
[1672761637317,5.0,12.768,12.752,0.06304269]
[1672761637521,50.0,12.759,12.756,0.06659813]
[1672761637730,50.0,12.759,12.753,0.06114019]
[1672761637948,5.0,12.768,12.752,0.0636259]
[1672761638156,50.0,12.759,12.756,0.0649267]
[1672761638370,50.0,12.759,12.753,0.06282274]
[1672761638683,50.0,12.759,12.752,0.06847162]
[1672761638997,50.0,12.759,12.751,0.06347102]
[1672761639418,5.0,12.768,12.751,0.06347102]
[1672761639629,50.0,12.759,12.755,0.06225921]
[1672761639838,50.0,12.759,12.753,0.06389581]
[1672761640045,5.0,12.768,12.753,0.06389581]
[1672761640252,5.0,12.768,12.756,0.06697316]
[1672761640468,5.0,12.768,12.758,0.06958772]
[1672761640678,58.69,12.779,12.759,0.06183807]
[1672761640886,50.0,12.769,12.762,0.06210906]
[1672761641101,50.0,12.773,12.761,0.0658523]
[1672761641312,50.0,12.769,12.763,0.06259286]
[1672761641521,5.0,12.768,12.762,0.0662421]
[1672761641722,58.68,12.781,12.761,0.069867]
[1672761641935,50.0,12.773,12.763,0.06398044]
[1672761642149,633.68,12.781,12.764,0.06215014]
[1672761642470,5.0,12.783,12.768,0.0652991]
[1672761642680,4.86487016,12.779,12.77,0.06068974]
[1672761642886,4.86487016,12.779,12.77,0.06913763]
[1672761643309,5.0,12.787,12.77,0.06913763]
[1672761643519,4.86487016,12.779,12.774,0.06421486]
[1672761643729,4.86487016,12.779,12.772,0.07093125]
[1672761644462,4.86487016,12.773,12.772,0.07093125]
[1672761644674,4.86487016,12.773,12.768,0.0673185]
[1672761644993,5.0,12.782,12.766,0.06380387]
[1672761645192,5.0,12.782,12.755,5.0]
[1672761645405,5.0,12.782,12.764,0.06267921]
[1672761645614,4.86487016,12.789,12.769,0.0652177]
[1672761645822,50.0,12.841,12.782,45.13512984]
[1672761646039,4.86487016,12.783,12.756,58.8]
[1672761646355,877.0,12.799,12.784,5.0]
[1672761646562,58.6,12.798,12.787,0.06381763]
[1672761646773,50.0,12.803,12.788,0.0706257]
[1672761646985,58.2,12.887,12.789,5.0]
[1672761647305,49.1384,12.909,12.789,5.0]
[1672761647306,44.1384,12.838,12.834,0.0602104]
[1672761647616,63.42,12.837,12.789,5.0]
[1672761647829,5.0,12.836,12.789,5.0]
[1672761648034,5.0,12.834,12.789,5.0]
[1672761648349,5.0,12.832,12.807,0.06946062]
[1672761648559,0.06158565,12.824,12.815,0.0685221]
[1672761648878,58.49,12.823,12.815,0.0679713]
[1672761649083,5.0,12.822,12.815,0.0679713]
[1672761649288,58.5,12.821,12.815,0.0679713]
[1672761649502,5.0,12.82,12.815,7.13e-05]
[1672761649708,58.51,12.819,12.815,7.13e-05]
[1672761649923,5.0,12.818,12.815,7.13e-05]
[1672761650135,58.52,12.817,12.789,5.0]
[1672761650343,5.0,12.816,12.789,5.0]
[1672761650560,0.06352194,12.807,12.798,0.0600948]
[1672761650769,0.06967189,12.807,12.798,0.06315055]
[1672761652347,5.0,12.823,12.799,5.0]
[1672761652770,5.0,12.823,12.79,5.0]
[1672761653089,5.0,12.821,12.79,5.0]
[1672761653296,58.5,12.82,12.801,0.06380449]
[1672761653507,5.0,12.819,12.806,0.06343443]
[1672761653717,58.49,12.822,12.808,0.07048367]
[1672761653927,5.0,12.823,12.811,0.07116124]
[1672761654245,5.0,12.825,12.813,0.06055327]
[1672761654455,5.0,12.83,12.815,0.06637627]
[1672761654665,58.45,12.831,12.817,0.06593193]
[1672761654982,1032.01537,13.03,12.79,5.0]
[1672761654983,58.42,12.839,12.82,0.07096442]
[1672761655187,58.44,12.833,12.823,0.06733867]
[1672761655503,5.0,12.932,12.824,0.0685037]
[1672761655714,58.0,12.931,12.873,0.06344964]
[1672761655917,5.0,12.93,12.897,0.06635995]
[1672761656126,58.01,12.929,12.909,0.06431198]
[1672761656341,5.0,12.928,12.914,0.06244049]
[1672761656558,58.02,12.927,12.916,0.06562943]
[1672761656761,1798.0,12.889,12.822,5.0]
[1672761656974,63.19,12.888,12.822,55.0]
[1672761657180,48.9555,12.887,12.822,55.0]
[1672761657396,877.0,12.885,12.823,5.0]
[1672761657606,1905.1655,12.884,12.823,55.0]
[1672761657813,0.06270605,12.858,12.849,0.06692209]
[1672761658022,58.33,12.857,12.824,5.0]
[1672761658236,5.0,12.856,12.824,5.0]
[1672761658448,58.34,12.855,12.824,5.0]
[1672761658653,5.0,12.854,12.824,5.0]
[1672761658871,58.35,12.853,12.824,5.0]
[1672761659070,0.06353425,12.843,12.834,0.06793404]
[1672761659285,0.06179016,12.843,12.834,0.06611198]
[1672761660230,58.4,12.842,12.834,0.06611198]
[1672761660440,5.0,12.841,12.834,0.06611198]
[1672761661180,1861.41,12.841,12.789,55.0]
[1672761661387,1861.41,12.841,12.791,43.7167]
[1672761661600,5.0,12.84,12.791,102.3467]
[1672761661914,5.0,12.838,12.791,48.7167]
[1672761662122,0.06296374,12.827,12.818,0.06968006]
[1672761662328,0.06364654,12.827,12.818,0.06527376]
[1672761665169,0.06364654,12.827,12.806,5.0]
[1672761665170,5.0,12.826,12.791,5.0]
[1672761665381,5.0,12.824,12.795,50.0]
[1672761665581,5.0,12.824,12.791,5.0]
[1672761665795,5.0,12.824,12.795,50.0]
[1672761666009,5.0,12.824,12.791,5.0]
[1672761666210,0.06708603,12.814,12.806,0.06303224]
[1672761666423,0.06346465,12.814,12.806,0.06014907]
[1672761666849,5.0,12.826,12.807,5.0]
[1672761667471,6.8,12.826,12.807,5.0]
[1672761667892,0.06368049,12.821,12.812,0.06371504]
[1672761668524,0.64120637,12.839,12.813,5.0]
[1672761668739,0.64120637,12.839,12.816,5.0]
[1672761668949,0.64120637,12.839,12.807,5.0]
[1672761669365,58.42,12.838,12.797,5.0]
[1672761669576,5.0,12.837,12.806,50.0]
[1672761669785,5.0,12.837,12.813,0.06221442]
[1672761669995,5.0,12.837,12.807,5.0]
[1672761670211,0.06911143,12.829,12.821,0.07087271]
[1672761670418,0.06024327,12.829,12.821,0.07087271]
[1672761671045,1.3,12.826,12.821,0.07087271]
[1672761672103,1.3,12.826,12.821,7.271e-05]
[1672761674734,0.06024327,12.829,12.821,7.271e-05]
[1672761675468,1.76024327,12.829,12.821,7.271e-05]
[1672761676939,19.43,12.825,12.821,7.271e-05]
[1672761677665,5.0,12.824,12.821,7.271e-05]
[1672761677875,19.48,12.822,12.818,0.06630767]
[1672761678089,19.48,12.822,12.803,5.0]
[1672761678309,19.48,12.818,12.802,5.0]
[1672761678511,19.48,12.812,12.797,5.0]
[1672761678724,19.48,12.812,12.798,50.0]
[1672761678928,19.48,12.816,12.799,5.0]
[1672761679251,0.06717663,12.812,12.803,0.06402223]
[1672761681347,19.31,12.811,12.803,0.06402223]
[1672761681981,0.06717663,12.812,12.803,0.06402223]
[1672761682602,1.6,12.817,12.803,0.06402223]
[1672761682817,5.0,12.822,12.803,0.06402223]
[1672761683024,5.0,12.822,12.789,55.0]
[1672761683025,58.5,12.821,12.78,55.0]
[1672761683234,5.0,12.82,12.78,55.0]
[1672761683450,19.48,12.798,12.78,55.0]
[1672761683769,19.48,12.809,12.787,19.48]
[1672761683973,1.6,12.811,12.787,19.48]
[1672761684187,5.0,12.808,12.79,50.0]
[1672761684397,5.0,12.808,12.791,5.0]
[1672761684713,1.6,12.811,12.793,19.48]
[1672761684925,0.07102999,12.806,12.798,0.06351623]
[1672761685135,0.06805899,12.806,12.798,0.06351623]
[1672761686713,19.4,12.803,12.798,0.06351623]
[1672761687865,5.0,12.802,12.79,50.0]
[1672761688072,19.4,12.8,12.781,50.0]
[1672761688281,19.4,12.8,12.782,5.0]
[1672761688493,19.48,12.797,12.782,5.0]
[1672761688700,5.0,12.796,12.78,5.0]
[1672761688910,19.4,12.794,12.784,0.0677698]
[1672761689124,19.48,12.791,12.785,0.06488294]
[1672761689335,19.48,12.791,12.766,44.7741]
[1672761689546,19.48,12.791,12.776,0.06480493]
[1672761689763,0.06383257,12.788,12.779,0.06799347]
[1672761690073,0.06242923,12.788,12.779,0.06558635]
[1672761690494,0.06242923,12.788,12.782,50.0]
[1672761690706,0.06242923,12.788,12.783,5.0]
[1672761690912,0.06242923,12.788,12.779,0.06558635]
[1672761691125,19.54242923,12.788,12.779,0.06558635]
[1672761691543,5.0,12.787,12.779,0.06558635]
[1672761692695,5.0,12.787,12.768,5.0]
[1672761693115,1.4,12.791,12.773,5.0]
[1672761693331,1.4,12.791,12.773,24.48]
[1672761693534,1.4,12.791,12.782,50.0]
[1672761693747,24.4,12.803,12.783,5.0]
[1672761693953,5.0,12.803,12.783,5.0]
[1672761694168,19.45,12.797,12.775,5.0]
[1672761694380,5.0,12.796,12.775,5.0]
[1672761695008,0.06310987,12.79,12.781,0.07111913]
[1672761695219,0.06474529,12.79,12.781,0.06827445]
[1672761695530,0.06474529,12.79,12.784,5.0]
[1672761695951,5.0,12.798,12.784,5.0]
[1672761696373,5.0,12.809,12.784,5.0]
[1672761696374,19.48,12.807,12.784,5.0]
[1672761696581,5.0,12.806,12.784,5.0]
[1672761697007,19.48,12.793,12.791,0.0700925]
[1672761697219,19.48,12.792,12.788,0.07092717]
[1672761697424,19.3,12.792,12.774,5.0]
[1672761697641,0.06295626,12.787,12.779,0.07078727]
[1672761697953,0.06706993,12.787,12.779,0.06823202]
[1672761700889,5.06706993,12.787,12.779,0.06823202]
[1672761701104,5.0,12.783,12.774,50.0]
[1672761701941,19.48,12.781,12.766,51.54]
[1672761702159,0.06107516,12.778,12.77,0.06943448]
[1672761702473,19.48,12.771,12.77,0.06943448]
[1672761702684,19.48,12.771,12.752,5.0]
[1672761702891,77.92,12.769,12.751,45.4793]
[1672761703204,5.0,12.77,12.741,5.0]
[1672761703422,19.31,12.773,12.75,55.0]
[1672761703633,19.45,12.77,12.755,50.0]
[1672761703943,0.06404522,12.766,12.757,0.06031945]
[1672761704151,0.0693883,12.766,12.765,50.0]
[1672761704363,0.07057467,12.77,12.761,0.06945506]
[1672761704566,0.06078195,12.77,12.765,50.0]
[1672761704782,19.3,12.766,12.746,55.0]
[1672761704992,19.48,12.759,12.746,55.0]
[1672761705411,19.31,12.762,12.746,55.0]
[1672761705622,5.0,12.765,12.746,55.0]
[1672761705834,0.06311952,12.76,12.756,50.0]
[1672761706149,5.0,12.775,12.757,5.0]
[1672761706572,5.0,12.781,12.757,5.0]
[1672761706573,5.0,12.781,12.766,50.0]
[1672761706888,5.0,12.777,12.769,0.060796]
[1672761707202,0.06797804,12.777,12.769,0.06937535]
[1672761707625,19.31,12.77,12.769,0.06937535]
[1672761707834,19.31,12.77,12.765,0.0678851]
[1672761708144,19.4,12.766,12.763,0.06918637]
[1672761708361,5.0,12.765,12.748,101.7259]
[1672761708569,24.32,12.765,12.748,55.0]
[1672761708990,24.32,12.765,12.747,5.0]
[1672761709203,19.48,12.76,12.742,5.0]
[1672761709514,19.38780274,12.757,12.748,50.07001296]
[1672761709719,19.38790337,12.757,12.748,50.06148209]
[1672761709934,19.38790337,12.757,12.748,0.06148209]
[1672761710146,19.48,12.754,12.748,0.06148209]
[1672761711502,0.06790337,12.757,12.748,0.06148209]
[1672761711929,19.45,12.754,12.748,0.06148209]
[1672761712565,0.06790337,12.757,12.748,0.06148209]
[1672761712986,0.06790337,12.757,12.749,50.0]
[1672761713300,0.06790337,12.757,12.75,5.0]
[1672761713722,3.37e-06,12.757,12.75,5.0]
[1672761713936,1.0,12.765,12.75,24.48]
[1672761714141,1.0,12.765,12.753,19.43]
[1672761714350,19.43,12.774,12.753,19.43]
[1672761714351,5.0,12.781,12.754,5.0]
[1672761714765,5.0,12.781,12.76,5.0]
[1672761714976,0.06464825,12.774,12.765,0.06710286]
[1672761715606,5.0,12.773,12.759,50.0]
[1672761715814,19.4,12.769,12.739,45.7692]
[1672761716032,5.0,12.768,12.739,45.7692]
[1672761716660,0.06268567,12.758,12.75,0.06252074]
[1672761716877,5.0,12.768,12.75,0.06259559]
[1672761717085,19.4,12.767,12.755,0.06693641]
[1672761717298,19.48,12.774,12.75,19.43]
[1672761717508,19.31,12.767,12.751,5.0]
[1672761717920,5.0,12.766,12.746,42.8779]
[1672761718132,5.0,12.766,12.747,24.48]
[1672761718350,0.068398,12.761,12.752,0.06533247]
[1672761719394,5.0,12.769,12.753,5.0]
[1672761719607,5.0,12.77,12.753,5.0]
[1672761719922,5.0,12.77,12.748,5.0]
[1672761720341,5.0,12.77,12.755,0.06208419]
[1672761720551,5.0,12.774,12.75,19.48]
[1672761720757,0.06117173,12.767,12.758,0.06636593]
[1672761720972,5.0,12.774,12.758,0.06823171]
[1672761721180,0.07096494,12.77,12.762,0.0660399]
[1672761721501,0.07074999,12.77,12.762,0.06253081]
[1672761721715,19.45,12.785,12.763,5.0]
[1672761722025,5.0,12.784,12.763,5.0]
[1672761722760,0.06983578,12.778,12.769,0.0700588]
[1672761723074,0.07114064,12.778,12.769,0.06775804]
[1672761724019,19.48,12.795,12.774,19.48]
[1672761724229,24.48,12.801,12.778,5.0]
[1672761724442,19.48,12.801,12.778,5.0]
[1672761724758,5.0,12.797,12.77,5.0]
[1672761724968,0.06407364,12.788,12.779,0.06836162]
[1672761725178,0.07135424,12.788,12.779,0.06755688]
[1672761725381,19.48,12.787,12.779,0.06755688]
[1672761725596,5.0,12.786,12.756,55.0]
[1672761725806,5.0,12.786,12.765,5.0]
[1672761726015,19.4,12.779,12.765,5.0]
[1672761726651,19.48,12.771,12.768,0.06388558]
[1672761726857,19.45,12.769,12.753,43.1033]
[1672761727068,19.45,12.769,12.746,55.0]
[1672761727278,5.0,12.775,12.756,50.0]
[1672761727488,5.0,12.778,12.756,50.0]
[1672761727702,5.0,12.778,12.757,5.0]
[1672761727909,5.0,12.778,12.763,0.06517283]
[1672761727910,0.06027339,12.772,12.763,0.06517283]
[1672761728121,0.07018191,12.772,12.763,0.0644541]
[1672761729592,5.0,12.787,12.771,1032.5]
[1672761729802,5.0,12.792,12.772,5.0]
[1672761730742,0.06376234,12.785,12.772,5.0]
[1672761730958,0.06376234,12.785,12.784,604.05]
[1672761731159,5.0,12.792,12.784,604.05]
[1672761731375,50.0,12.795,12.791,292.43]
[1672761731693,50.0,12.795,12.78,311.68]
[1672761732006,5.0,12.801,12.791,311.68]
[1672761732215,0.07073106,12.8,12.792,5.0650607]
[1672761732427,0.07073106,12.8,12.792,0.0650607]
[1672761732637,0.07073106,12.8,12.799,97.27]
[1672761732841,5.0,12.805,12.792,0.0650607]
[1672761733052,0.06050693,12.804,12.791,194.77]
[1672761733261,0.06050693,12.804,12.793,0.06223199]
[1672761733473,0.06050693,12.804,12.803,19.44]
[1672761733679,5.0,12.805,12.791,135.47419658]
[1672761734003,5.0,12.805,12.791,154.94419658]
[1672761734528,5.0,12.805,12.802,19.48]
[1672761734730,0.06114442,12.802,12.794,0.06932517]
[1672761734943,0.06114442,12.802,12.801,19.48]
[1672761735157,5.0,12.801,12.797,0.06976448]
[1672761735362,5.0,12.797,12.791,77.92]
[1672761735577,50.0,12.796,12.79,0.06936523]
[1672761735780,5.0,12.801,12.795,97.55]